[Event "*** Titled Tuesday Blitz"]
[Site "Chess.com"]
[Date "2019.04.02"]
[Round "8"]
[White "Heineccius"]
[Black "Manukyan_Artak"]
[Result "1/2-1/2"]
[WhiteElo "2495"]
[BlackElo "2455"]
[TimeControl "180+2"]
[EndTime "15:52:18 PDT"]
[Termination "Game drawn by repetition"]

1. d4 {[%clk 0:03:01.9]} 1... Nf6 {[%clk 0:03:00]} 2. c4 {[%clk 0:03:02.7]} 2...
e6 {[%clk 0:03:01.1]} 3. Nc3 {[%clk 0:03:03.1]} 3... Bb4 {[%clk 0:03:02.1]} 4.
g3 {[%clk 0:03:04.1]} 4... d5 {[%clk 0:03:02.7]} 5. Bg2 {[%clk 0:03:04.2]} 5...
O-O {[%clk 0:02:59.1]} 6. Nf3 {[%clk 0:03:04.9]} 6... dxc4 {[%clk 0:03:00.1]} 7.
Qa4 {[%clk 0:03:05.4]} 7... a5 {[%clk 0:02:50.5]} 8. O-O {[%clk 0:02:40.8]} 8...
Bd7 {[%clk 0:02:49]} 9. Qc2 {[%clk 0:02:40.9]} 9... Bc6 {[%clk 0:02:47.5]} 10.
Bg5 {[%clk 0:02:32.2]} 10... Nbd7 {[%clk 0:02:41.1]} 11. Rfd1 {[%clk 0:02:23.4]}
11... h6 {[%clk 0:02:38.9]} 12. Bxf6 {[%clk 0:02:15.3]} 12... Nxf6 {[%clk
0:02:39.4]} 13. Ne5 {[%clk 0:02:15.6]} 13... Bxg2 {[%clk 0:02:39.6]} 14. Kxg2
{[%clk 0:02:16.7]} 14... Bxc3 {[%clk 0:02:22.5]} 15. Qxc3 {[%clk 0:02:11.2]}
15... b5 {[%clk 0:02:23.5]} 16. a4 {[%clk 0:02:03.3]} 16... Qd5+ {[%clk
0:02:03.4]} 17. f3 {[%clk 0:02:01]} 17... c6 {[%clk 0:01:44.8]} 18. axb5 {[%clk
0:01:22.1]} 18... cxb5 {[%clk 0:01:45.3]} 19. Rxa5 {[%clk 0:01:22.6]} 19... Rxa5
{[%clk 0:01:46.6]} 20. Qxa5 {[%clk 0:01:23.2]} 20... Ra8 {[%clk 0:01:42.6]} 21.
Qc7 {[%clk 0:01:20.2]} 21... Rf8 {[%clk 0:01:39.5]} 22. Kf2 {[%clk 0:00:29.9]}
22... Ne8 {[%clk 0:01:24.9]} 23. Qc5 {[%clk 0:00:29.1]} 23... Nf6 {[%clk
0:01:19.8]} 24. Qxd5 {[%clk 0:00:28]} 24... Nxd5 {[%clk 0:01:20.2]} 25. Ra1
{[%clk 0:00:28.7]} 25... Rc8 {[%clk 0:01:16.9]} 26. Ra5 {[%clk 0:00:21.3]} 26...
b4 {[%clk 0:01:16.3]} 27. Rc5 {[%clk 0:00:20.8]} 27... Rxc5 {[%clk 0:01:15.1]}
28. dxc5 {[%clk 0:00:22.3]} 28... c3 {[%clk 0:01:17]} 29. bxc3 {[%clk
0:00:22.9]} 29... bxc3 {[%clk 0:01:14.7]} 30. Nd3 {[%clk 0:00:24.1]} 30... c2
{[%clk 0:01:13.2]} 31. Nc1 {[%clk 0:00:24.3]} 31... Kf8 {[%clk 0:01:11.3]} 32.
e4 {[%clk 0:00:25.7]} 32... Nb4 {[%clk 0:01:11.7]} 33. Ke3 {[%clk 0:00:26.8]}
33... Ke7 {[%clk 0:01:12.5]} 34. Kd4 {[%clk 0:00:27.1]} 34... Kd7 {[%clk
0:01:09.4]} 35. Kc4 {[%clk 0:00:28.2]} 35... Na6 {[%clk 0:01:09.2]} 36. Kb5
{[%clk 0:00:29.4]} 36... Nc7+ {[%clk 0:01:10.3]} 37. Kb6 {[%clk 0:00:30.8]}
37... e5 {[%clk 0:01:09.8]} 38. Kb7 {[%clk 0:00:31]} 38... Ne6 {[%clk
0:01:08.9]} 39. c6+ {[%clk 0:00:32.1]} 39... Kd6 {[%clk 0:01:10.1]} 40. Kb6
{[%clk 0:00:33.1]} 40... g6 {[%clk 0:01:09.8]} 41. Nd3 {[%clk 0:00:33.3]} 41...
f5 {[%clk 0:01:09.4]} 42. Nc1 {[%clk 0:00:33.9]} 42... fxe4 {[%clk 0:01:10]} 43.
fxe4 {[%clk 0:00:35.4]} 43... Nc7 {[%clk 0:01:11.6]} 44. Kb7 {[%clk 0:00:36]}
44... Nb5 {[%clk 0:01:12.2]} 45. Kb6 {[%clk 0:00:37.2]} 45... Nc7 {[%clk
0:01:11.4]} 46. Nb3 {[%clk 0:00:36]} 46... Ne6 {[%clk 0:01:11.6]} 47. Nc1 {[%clk
0:00:35.6]} 47... g5 {[%clk 0:01:10.4]} 48. g4 {[%clk 0:00:35.5]} 48... Nc7
{[%clk 0:01:09.8]} 49. Nd3 {[%clk 0:00:35.4]} 49... Ne6 {[%clk 0:01:10.7]} 50.
Nc1 {[%clk 0:00:35.5]} 50... Nc7 {[%clk 0:01:04.7]} 51. h3 {[%clk 0:00:36.5]}
51... Na8+ {[%clk 0:01:02.2]} 52. Kb5 {[%clk 0:00:35.8]} 52... Nc7+ {[%clk
0:01:00]} 53. Kb6 {[%clk 0:00:35.5]} 53... Ne6 {[%clk 0:00:59.8]} 54. Nd3 {[%clk
0:00:35]} 54... Nc5 {[%clk 0:00:52.3]} 55. Nc1 {[%clk 0:00:32.8]} 55... Ne6
{[%clk 0:00:53.2]} 56. Ne2 {[%clk 0:00:30.7]} 56... Nd4 {[%clk 0:00:50.3]} 57.
Nc1 {[%clk 0:00:30.9]} 57... Nxc6 {[%clk 0:00:51.2]} 58. Kb5 {[%clk 0:00:30.6]}
58... Nd4+ {[%clk 0:00:48.5]} 59. Kc4 {[%clk 0:00:31.9]} 59... Kc6 {[%clk
0:00:49.1]} 60. Nd3 {[%clk 0:00:31.9]} 60... Kd6 {[%clk 0:00:44.4]} 61. Kc3
{[%clk 0:00:32]} 61... Ne2+ {[%clk 0:00:43.5]} 62. Kxc2 {[%clk 0:00:32.3]} 62...
Nf4 {[%clk 0:00:44.4]} 63. Nf2 {[%clk 0:00:33.5]} 63... Kc5 {[%clk 0:00:45.6]}
64. Kc3 {[%clk 0:00:34.5]} 64... h5 {[%clk 0:00:44.4]} 65. gxh5 {[%clk
0:00:34.8]} 65... Nxh5 {[%clk 0:00:45.3]} 66. Ng4 {[%clk 0:00:36]} 66... Kd6
{[%clk 0:00:46.1]} 67. Ne3 {[%clk 0:00:31.8]} 67... Nf4 {[%clk 0:00:45]} 68. h4
{[%clk 0:00:31.3]} 68... gxh4 {[%clk 0:00:41.5]} 69. Nf5+ {[%clk 0:00:32.5]}
69... Kc5 {[%clk 0:00:43.4]} 70. Nxh4 {[%clk 0:00:33.6]} 70... Ne6 {[%clk
0:00:39.8]} 71. Nf3 {[%clk 0:00:33.6]} 71... Kd6 {[%clk 0:00:40.1]} 72. Kc4
{[%clk 0:00:34.4]} 72... Nf8 {[%clk 0:00:37.4]} 73. Nh4 {[%clk 0:00:33.7]} 73...
Nd7 {[%clk 0:00:38.5]} 74. Nf5+ {[%clk 0:00:35]} 74... Ke6 {[%clk 0:00:39.8]}
75. Ng3 {[%clk 0:00:34.2]} 75... Nb6+ {[%clk 0:00:39]} 76. Kc5 {[%clk 0:00:35]}
76... Na4+ {[%clk 0:00:40.1]} 77. Kc4 {[%clk 0:00:34.5]} 77... Nb6+ {[%clk
0:00:39.7]} 78. Kc5 {[%clk 0:00:35.3]} 78... Nd7+ {[%clk 0:00:40.9]} 79. Kc4
{[%clk 0:00:36.3]} 79... Nf6 {[%clk 0:00:40.1]} 80. Kc5 {[%clk 0:00:37.1]} 80...
Nd7+ {[%clk 0:00:41.1]} 81. Kc4 {[%clk 0:00:37.8]} 1/2-1/2

[Event "*** Titled Tuesday Blitz"]
[Site "Chess.com"]
[Date "2019.04.02"]
[Round "8"]
[White "warmoatmeal"]
[Black "Schachmalanders"]
[Result "1-0"]
[WhiteElo "1807"]
[BlackElo "2267"]
[TimeControl "180+2"]
[EndTime "15:52:21 PDT"]
[Termination "warmoatmeal won by checkmate"]

1. d4 {[%clk 0:03:01.9]} 1... d5 {[%clk 0:02:45.3]} 2. Bf4 {[%clk 0:03:02.2]}
2... c6 {[%clk 0:02:44.3]} 3. c3 {[%clk 0:03:01]} 3... Bf5 {[%clk 0:02:44.8]} 4.
Nd2 {[%clk 0:02:58.5]} 4... e6 {[%clk 0:02:45.6]} 5. Qb3 {[%clk 0:02:58.9]} 5...
Qb6 {[%clk 0:02:45.4]} 6. e3 {[%clk 0:02:59.4]} 6... Nd7 {[%clk 0:02:45.7]} 7.
Ngf3 {[%clk 0:03:00]} 7... Ngf6 {[%clk 0:02:46.4]} 8. h3 {[%clk 0:03:01.3]} 8...
h6 {[%clk 0:02:47.4]} 9. Be2 {[%clk 0:02:58.6]} 9... Be7 {[%clk 0:02:48.5]} 10.
O-O {[%clk 0:02:59.1]} 10... O-O {[%clk 0:02:49.6]} 11. Rad1 {[%clk 0:02:52.4]}
11... Ne4 {[%clk 0:02:47.4]} 12. c4 {[%clk 0:02:46.8]} 12... Nxd2 {[%clk
0:02:43.2]} 13. Nxd2 {[%clk 0:02:45.4]} 13... Qxb3 {[%clk 0:01:48.3]} 14. axb3
{[%clk 0:02:45.9]} 14... f6 {[%clk 0:01:45.1]} 15. Ra1 {[%clk 0:02:45.8]} 15...
e5 {[%clk 0:01:44.1]} 16. dxe5 {[%clk 0:02:46.1]} 16... fxe5 {[%clk 0:01:44.9]}
17. Bg3 {[%clk 0:02:47.3]} 17... a6 {[%clk 0:01:37.2]} 18. Nf3 {[%clk
0:02:40.8]} 18... Bf6 {[%clk 0:01:31.9]} 19. cxd5 {[%clk 0:02:38.2]} 19... cxd5
{[%clk 0:01:32.4]} 20. Rfd1 {[%clk 0:02:36.4]} 20... Be6 {[%clk 0:01:30.8]} 21.
Rac1 {[%clk 0:02:07.9]} 21... Rac8 {[%clk 0:01:30.8]} 22. Kf1 {[%clk 0:01:50]}
22... Kf7 {[%clk 0:01:25.7]} 23. Ke1 {[%clk 0:01:49.9]} 23... Ke7 {[%clk
0:01:25]} 24. Bh4 {[%clk 0:01:46.2]} 24... Bxh4 {[%clk 0:01:16.7]} 25. Nxh4
{[%clk 0:01:48.1]} 25... Nc5 {[%clk 0:01:12.1]} 26. Ng6+ {[%clk 0:01:47.7]}
26... Kd6 {[%clk 0:01:09.6]} 27. Nxf8 {[%clk 0:01:48]} 27... Rxf8 {[%clk
0:01:11.5]} 28. b4 {[%clk 0:01:18.4]} 28... Ne4 {[%clk 0:01:06.6]} 29. Bf3
{[%clk 0:01:17]} 29... Ng5 {[%clk 0:01:02.2]} 30. Bxd5 {[%clk 0:01:14.8]} 30...
Bxd5 {[%clk 0:01:01.8]} 31. Rc5 {[%clk 0:01:14.4]} 31... Ke6 {[%clk 0:00:53.2]}
32. Rcxd5 {[%clk 0:01:09.6]} 32... Nf7 {[%clk 0:00:46.5]} 33. Rd7 {[%clk
0:01:07.9]} 33... Rc8 {[%clk 0:00:46.1]} 34. Rxb7 {[%clk 0:01:08.4]} 34... Rc2
{[%clk 0:00:47.1]} 35. e4 {[%clk 0:01:01.3]} 35... Rxb2 {[%clk 0:00:43.6]} 36.
Rdd7 {[%clk 0:00:51.6]} 36... Nd6 {[%clk 0:00:41.7]} 37. Rxg7 {[%clk 0:00:34.5]}
37... Nxb7 {[%clk 0:00:38.8]} 38. Rxb7 {[%clk 0:00:36.4]} 38... Kd6 {[%clk
0:00:36.7]} 39. Rb6+ {[%clk 0:00:36.4]} 39... Kc7 {[%clk 0:00:37.9]} 40. Rxa6
{[%clk 0:00:37.3]} 40... Rxb4 {[%clk 0:00:37.2]} 41. Rxh6 {[%clk 0:00:38.1]}
41... Rxe4+ {[%clk 0:00:38.3]} 42. Kd2 {[%clk 0:00:38.6]} 42... Ra4 {[%clk
0:00:40.2]} 43. Ke3 {[%clk 0:00:39.1]} 43... Kd7 {[%clk 0:00:40.9]} 44. f3
{[%clk 0:00:34.2]} 44... Ke7 {[%clk 0:00:41.9]} 45. h4 {[%clk 0:00:34.2]} 45...
Kf7 {[%clk 0:00:42.7]} 46. h5 {[%clk 0:00:33.5]} 46... Ra2 {[%clk 0:00:43.3]}
47. g4 {[%clk 0:00:32.3]} 47... Ra4 {[%clk 0:00:41.6]} 48. Rb6 {[%clk
0:00:31.5]} 48... Kg7 {[%clk 0:00:40.3]} 49. g5 {[%clk 0:00:31.2]} 49... Rh4
{[%clk 0:00:41.2]} 50. Rb7+ {[%clk 0:00:30.2]} 50... Kg8 {[%clk 0:00:39.5]} 51.
h6 {[%clk 0:00:30.3]} 51... Rh5 {[%clk 0:00:37.9]} 52. f4 {[%clk 0:00:29.7]}
52... exf4+ {[%clk 0:00:35.5]} 53. Kxf4 {[%clk 0:00:30.7]} 53... Rh1 {[%clk
0:00:37.4]} 54. Kf5 {[%clk 0:00:30.6]} 54... Kf8 {[%clk 0:00:36.9]} 55. Kg6
{[%clk 0:00:29.7]} 55... Rh2 {[%clk 0:00:36.7]} 56. h7 {[%clk 0:00:26.7]} 56...
Rh1 {[%clk 0:00:34.7]} 57. Rb8+ {[%clk 0:00:22.1]} 57... Ke7 {[%clk 0:00:36.2]}
58. h8=Q {[%clk 0:00:22.1]} 58... Rxh8 {[%clk 0:00:38.1]} 59. Rxh8 {[%clk
0:00:22.7]} 59... Kd7 {[%clk 0:00:40]} 60. Kf7 {[%clk 0:00:23.3]} 60... Kd6
{[%clk 0:00:41.5]} 61. g6 {[%clk 0:00:25.2]} 61... Kd5 {[%clk 0:00:43.4]} 62. g7
{[%clk 0:00:26.5]} 62... Ke5 {[%clk 0:00:45.3]} 63. g8=Q {[%clk 0:00:27.5]}
63... Kd6 {[%clk 0:00:47.2]} 64. Qg6+ {[%clk 0:00:28.3]} 64... Kd5 {[%clk
0:00:49.1]} 65. Qe6+ {[%clk 0:00:28.8]} 65... Kd4 {[%clk 0:00:49.7]} 66. Rd8+
{[%clk 0:00:29.6]} 66... Kc5 {[%clk 0:00:51.6]} 67. Qc8+ {[%clk 0:00:30.1]}
67... Kb6 {[%clk 0:00:53.1]} 68. Qc1 {[%clk 0:00:29.9]} 68... Kb7 {[%clk
0:00:53.9]} 69. Rd2 {[%clk 0:00:29.7]} 69... Kb6 {[%clk 0:00:55.3]} 70. Rb2+
{[%clk 0:00:30.2]} 70... Ka6 {[%clk 0:00:03.2]} 71. Qa1# {[%clk 0:00:32.1]} 1-0

[Event "*** Titled Tuesday Blitz"]
[Site "Chess.com"]
[Date "2019.04.02"]
[Round "8"]
[White "black_pawn_16"]
[Black "JSMastropiero"]
[Result "1-0"]
[WhiteElo "2107"]
[BlackElo "2227"]
[TimeControl "180+2"]
[EndTime "15:52:32 PDT"]
[Termination "black_pawn_16 won by resignation"]

1. e4 {[%clk 0:03:01.9]} 1... e6 {[%clk 0:03:00.5]} 2. d4 {[%clk 0:03:02.2]}
2... d5 {[%clk 0:03:01]} 3. Nc3 {[%clk 0:03:03.2]} 3... Bb4 {[%clk 0:03:01.2]}
4. Bd3 {[%clk 0:03:03]} 4... Ne7 {[%clk 0:02:58.3]} 5. Ne2 {[%clk 0:03:00.4]}
5... c5 {[%clk 0:02:58.8]} 6. dxc5 {[%clk 0:02:54.3]} 6... Nbc6 {[%clk
0:02:47.9]} 7. O-O {[%clk 0:02:52.8]} 7... O-O {[%clk 0:02:44.2]} 8. exd5 {[%clk
0:02:52.9]} 8... exd5 {[%clk 0:02:44.6]} 9. a3 {[%clk 0:02:48.9]} 9... Bxc5
{[%clk 0:02:45]} 10. b4 {[%clk 0:02:49.4]} 10... Bd6 {[%clk 0:02:45.6]} 11. Bb2
{[%clk 0:02:50]} 11... a6 {[%clk 0:02:42]} 12. Ng3 {[%clk 0:02:49.5]} 12... Ne5
{[%clk 0:02:29.9]} 13. Be2 {[%clk 0:02:45.7]} 13... Be6 {[%clk 0:02:21.5]} 14.
f4 {[%clk 0:02:15.8]} 14... Nc4 {[%clk 0:02:21.2]} 15. Bxc4 {[%clk 0:02:14.5]}
15... dxc4 {[%clk 0:02:22.1]} 16. f5 {[%clk 0:02:15.3]} 16... Bxg3 {[%clk
0:02:11.4]} 17. fxe6 {[%clk 0:02:03.5]} 17... Be5 {[%clk 0:02:06.9]} 18. exf7+
{[%clk 0:01:50.6]} 18... Kh8 {[%clk 0:02:05.1]} 19. Qe2 {[%clk 0:01:49.1]} 19...
Ng6 {[%clk 0:02:00]} 20. Rad1 {[%clk 0:01:32]} 20... Qh4 {[%clk 0:01:58.4]} 21.
g3 {[%clk 0:01:30]} 21... Qh3 {[%clk 0:01:49.8]} 22. Qg2 {[%clk 0:01:21.3]}
22... Qe6 {[%clk 0:01:45.5]} 23. Qf3 {[%clk 0:01:10.4]} 23... Rac8 {[%clk
0:01:35.6]} 24. Ba1 {[%clk 0:01:05.3]} 24... Rc7 {[%clk 0:01:32.2]} 25. Qd5
{[%clk 0:00:54.3]} 25... Qxd5 {[%clk 0:01:05]} 26. Nxd5 {[%clk 0:00:56.2]} 26...
Rcxf7 {[%clk 0:01:05.7]} 27. Rxf7 {[%clk 0:00:55.5]} 27... Rxf7 {[%clk
0:01:07.1]} 28. Bxe5 {[%clk 0:00:56.9]} 28... Nxe5 {[%clk 0:01:07.9]} 29. Kg2
{[%clk 0:00:58.3]} 29... h6 {[%clk 0:01:04.9]} 30. Re1 {[%clk 0:00:56.1]} 30...
Ng4 {[%clk 0:00:58.2]} 31. Re2 {[%clk 0:00:53.2]} 31... Rd7 {[%clk 0:00:55.5]}
32. Nb6 {[%clk 0:00:44.5]} 32... Rd4 {[%clk 0:00:48.6]} 33. h3 {[%clk
0:00:43.3]} 33... Nf6 {[%clk 0:00:46.4]} 34. Kf3 {[%clk 0:00:35.1]} 34... c3
{[%clk 0:00:44.6]} 35. Re3 {[%clk 0:00:26.5]} 35... Rd6 {[%clk 0:00:34.3]} 36.
Nc4 {[%clk 0:00:27.2]} 36... Rc6 {[%clk 0:00:34.6]} 37. Ne5 {[%clk 0:00:28.3]}
37... Rc7 {[%clk 0:00:28.4]} 38. Rd3 {[%clk 0:00:28.9]} 38... Kh7 {[%clk
0:00:28.3]} 39. g4 {[%clk 0:00:20.7]} 39... Re7 {[%clk 0:00:22.2]} 40. Kf4
{[%clk 0:00:21.3]} 40... Rc7 {[%clk 0:00:20.5]} 41. Nf3 {[%clk 0:00:20.6]} 41...
Rc4+ {[%clk 0:00:18]} 42. Ke5 {[%clk 0:00:19.5]} 42... Re4+ {[%clk 0:00:16.3]}
43. Kd6 {[%clk 0:00:19.7]} 43... Re2 {[%clk 0:00:16.3]} 44. Nd4 {[%clk
0:00:17.9]} 44... Ne4+ {[%clk 0:00:15.2]} 45. Kd5 {[%clk 0:00:16.3]} 45... Re1
{[%clk 0:00:16.1]} 46. Nf3 {[%clk 0:00:15.6]} 46... Re2 {[%clk 0:00:17.1]} 47.
Nd4 {[%clk 0:00:16.4]} 47... Nf6+ {[%clk 0:00:18.2]} 48. Kc4 {[%clk 0:00:16.9]}
48... Re4 {[%clk 0:00:19.3]} 49. Kxc3 {[%clk 0:00:17.4]} 49... Nd5+ {[%clk
0:00:19.3]} 50. Kc4 {[%clk 0:00:18.4]} 50... Nf4 {[%clk 0:00:20.6]} 51. Rf3
{[%clk 0:00:19.1]} 51... Ne6 {[%clk 0:00:18.2]} 52. c3 {[%clk 0:00:19.7]} 52...
Ng5 {[%clk 0:00:17.7]} 53. Rd3 {[%clk 0:00:20.6]} 53... Re5 {[%clk 0:00:17.5]}
54. a4 {[%clk 0:00:21]} 54... Ne4 {[%clk 0:00:16.9]} 55. Kb3 {[%clk 0:00:19.5]}
55... Nf2 {[%clk 0:00:17]} 56. Rf3 {[%clk 0:00:19.7]} 56... Nd1 {[%clk
0:00:16.7]} 57. Nf5 {[%clk 0:00:18.4]} 57... b5 {[%clk 0:00:16.3]} 58. a5 {[%clk
0:00:16.5]} 58... Re2 {[%clk 0:00:16.9]} 59. Rd3 {[%clk 0:00:13.6]} 59... Nf2
{[%clk 0:00:16.4]} 60. Re3 {[%clk 0:00:13.6]} 60... Rxe3 {[%clk 0:00:13.3]} 61.
Nxe3 {[%clk 0:00:15.5]} 61... Nxh3 {[%clk 0:00:15.2]} 62. c4 {[%clk 0:00:15.9]}
62... bxc4+ {[%clk 0:00:15.3]} 63. Kxc4 {[%clk 0:00:17.8]} 63... Nf2 {[%clk
0:00:16.3]} 64. b5 {[%clk 0:00:18.4]} 64... axb5+ {[%clk 0:00:17.5]} 65. Kxb5
{[%clk 0:00:19.7]} 65... Ne4 {[%clk 0:00:18.6]} 66. a6 {[%clk 0:00:20.2]} 66...
Nd6+ {[%clk 0:00:19.8]} 67. Kc6 {[%clk 0:00:20.7]} 67... Nc8 {[%clk 0:00:19.4]}
68. Nd5 {[%clk 0:00:21.8]} 68... h5 {[%clk 0:00:19]} 69. gxh5 {[%clk 0:00:22.4]}
69... Kh6 {[%clk 0:00:19.8]} 70. Kc7 {[%clk 0:00:18.8]} 70... Na7 {[%clk
0:00:20.4]} 71. Kb6 {[%clk 0:00:19.2]} 71... Nc8+ {[%clk 0:00:21.3]} 72. Kb7
{[%clk 0:00:20.7]} 72... Nd6+ {[%clk 0:00:22.5]} 73. Kb8 {[%clk 0:00:21]} 73...
Nb5 {[%clk 0:00:22.8]} 74. Nc7 {[%clk 0:00:21.8]} 74... Nd4 {[%clk 0:00:21.2]}
75. Kb7 {[%clk 0:00:20.5]} 75... Nb3 {[%clk 0:00:18.8]} 76. a7 {[%clk
0:00:21.1]} 76... Na5+ {[%clk 0:00:19.7]} 77. Ka6 {[%clk 0:00:21.2]} 1-0

[Event "*** Titled Tuesday Blitz"]
[Site "Chess.com"]
[Date "2019.04.02"]
[Round "8"]
[White "NemtsevIgor"]
[Black "TST2014"]
[Result "1/2-1/2"]
[WhiteElo "2309"]
[BlackElo "2510"]
[TimeControl "180+2"]
[EndTime "15:52:33 PDT"]
[Termination "Game drawn by stalemate"]

1. d4 {[%clk 0:03:01.9]} 1... Nf6 {[%clk 0:02:55.1]} 2. Bf4 {[%clk 0:03:02.3]}
2... g6 {[%clk 0:02:56]} 3. Nf3 {[%clk 0:03:03]} 3... Bg7 {[%clk 0:02:57.3]} 4.
e3 {[%clk 0:03:04.2]} 4... O-O {[%clk 0:02:58.5]} 5. Be2 {[%clk 0:03:05.6]} 5...
d6 {[%clk 0:02:59.7]} 6. O-O {[%clk 0:03:06.1]} 6... Nbd7 {[%clk 0:02:58.1]} 7.
c4 {[%clk 0:03:04.5]} 7... Ne4 {[%clk 0:02:52.8]} 8. Nbd2 {[%clk 0:03:03.3]}
8... Ndf6 {[%clk 0:02:52.9]} 9. h3 {[%clk 0:03:02]} 9... b6 {[%clk 0:02:48.9]}
10. Bh2 {[%clk 0:02:55.8]} 10... Bb7 {[%clk 0:02:49.5]} 11. Nxe4 {[%clk
0:02:55.1]} 11... Nxe4 {[%clk 0:02:37.6]} 12. Qc2 {[%clk 0:02:52.4]} 12... e6
{[%clk 0:02:09.6]} 13. Rfd1 {[%clk 0:02:50.7]} 13... Ng5 {[%clk 0:02:09.5]} 14.
d5 {[%clk 0:02:27.2]} 14... Qf6 {[%clk 0:01:55.3]} 15. Nxg5 {[%clk 0:02:06.3]}
15... Qxg5 {[%clk 0:01:54.8]} 16. Bf3 {[%clk 0:02:06.2]} 16... e5 {[%clk
0:01:48.7]} 17. e4 {[%clk 0:01:57.7]} 17... a5 {[%clk 0:01:46.8]} 18. b3 {[%clk
0:01:45.2]} 18... Bc8 {[%clk 0:01:37.8]} 19. Kh1 {[%clk 0:01:40.2]} 19... f5
{[%clk 0:01:37.6]} 20. a3 {[%clk 0:01:37]} 20... Bd7 {[%clk 0:01:36.5]} 21. Re1
{[%clk 0:01:23.7]} 21... fxe4 {[%clk 0:01:23.7]} 22. Bxe4 {[%clk 0:01:21.1]}
22... Bf5 {[%clk 0:01:22.6]} 23. f3 {[%clk 0:01:19.5]} 23... Bh6 {[%clk
0:01:20.5]} 24. Bg1 {[%clk 0:01:15]} 24... Qd2 {[%clk 0:01:19.6]} 25. Qxd2
{[%clk 0:01:08.4]} 25... Bxd2 {[%clk 0:01:13.8]} 26. Re2 {[%clk 0:01:09.6]}
26... Bc3 {[%clk 0:01:05.6]} 27. Rc1 {[%clk 0:01:04.8]} 27... Bxe4 {[%clk
0:01:03.7]} 28. fxe4 {[%clk 0:00:51.6]} 28... Bd4 {[%clk 0:00:54.2]} 29. Bxd4
{[%clk 0:00:52.6]} 29... exd4 {[%clk 0:00:55.2]} 30. Rd1 {[%clk 0:00:53.2]}
30... Rae8 {[%clk 0:00:52.1]} 31. Rxd4 {[%clk 0:00:53.4]} 31... Rf1+ {[%clk
0:00:52.4]} 32. Kh2 {[%clk 0:00:54]} 32... Ra1 {[%clk 0:00:52.6]} 33. a4 {[%clk
0:00:53.9]} 33... Rb1 {[%clk 0:00:53.4]} 34. Rd3 {[%clk 0:00:53.6]} 34... Re5
{[%clk 0:00:54.4]} 35. Rf3 {[%clk 0:00:52.5]} 35... Kg7 {[%clk 0:00:54.2]} 36.
h4 {[%clk 0:00:53.1]} 36... h5 {[%clk 0:00:54.8]} 37. Ref2 {[%clk 0:00:48.5]}
37... Rxe4 {[%clk 0:00:51.1]} 38. Rf7+ {[%clk 0:00:48.8]} 38... Kh6 {[%clk
0:00:52.4]} 39. Rxc7 {[%clk 0:00:49.6]} 39... Rxh4+ {[%clk 0:00:52.7]} 40. Kg3
{[%clk 0:00:50.8]} 40... Rg4+ {[%clk 0:00:52.8]} 41. Kh2 {[%clk 0:00:49.5]}
41... Rxb3 {[%clk 0:00:54.3]} 42. Rff7 {[%clk 0:00:49]} 42... Rh4+ {[%clk
0:00:46]} 43. Kg1 {[%clk 0:00:49.7]} 43... Rb4 {[%clk 0:00:47.7]} 44. Rfd7
{[%clk 0:00:41.4]} 44... Rhxc4 {[%clk 0:00:47.8]} 45. Rxc4 {[%clk 0:00:42.5]}
45... Rxc4 {[%clk 0:00:48.9]} 46. Rxd6 {[%clk 0:00:44.4]} 46... Rxa4 {[%clk
0:00:43.6]} 47. Rxb6 {[%clk 0:00:45.5]} 47... Rd4 {[%clk 0:00:45]} 48. d6 {[%clk
0:00:43.3]} 48... a4 {[%clk 0:00:46.3]} 49. Ra6 {[%clk 0:00:44.6]} 49... Kg5
{[%clk 0:00:46.9]} 50. d7 {[%clk 0:00:44.5]} 50... Rxd7 {[%clk 0:00:43.7]} 51.
Rxa4 {[%clk 0:00:45.6]} 51... Rf7 {[%clk 0:00:42.1]} 52. Kh2 {[%clk 0:00:45.4]}
52... Rf4 {[%clk 0:00:42.9]} 53. Ra6 {[%clk 0:00:44.9]} 53... h4 {[%clk
0:00:42.1]} 54. g3 {[%clk 0:00:41.1]} 54... hxg3+ {[%clk 0:00:24]} 55. Kxg3
{[%clk 0:00:42.1]} 55... Rf5 {[%clk 0:00:25.5]} 56. Ra4 {[%clk 0:00:41.1]} 56...
Rb5 {[%clk 0:00:26.2]} 57. Rc4 {[%clk 0:00:41.8]} 57... Rb3+ {[%clk 0:00:27.1]}
58. Kg2 {[%clk 0:00:43]} 58... Kf5 {[%clk 0:00:28.4]} 59. Ra4 {[%clk 0:00:43.8]}
59... g5 {[%clk 0:00:28.9]} 60. Rc4 {[%clk 0:00:43]} 60... Re3 {[%clk
0:00:29.6]} 61. Ra4 {[%clk 0:00:43.9]} 61... Kg6 {[%clk 0:00:30.1]} 62. Rb4
{[%clk 0:00:40.5]} 62... Kh5 {[%clk 0:00:31.1]} 63. Ra4 {[%clk 0:00:38]} 63...
Re8 {[%clk 0:00:30.6]} 64. Rb4 {[%clk 0:00:38.6]} 64... Kg6 {[%clk 0:00:30.4]}
65. Rb5 {[%clk 0:00:37.4]} 65... Rf8 {[%clk 0:00:29]} 66. Kg3 {[%clk 0:00:37.7]}
66... Rf4 {[%clk 0:00:29.2]} 67. Ra5 {[%clk 0:00:38.1]} 67... Kh5 {[%clk
0:00:30.2]} 68. Ra8 {[%clk 0:00:38.3]} 68... Rb4 {[%clk 0:00:27.6]} 69. Rh8+
{[%clk 0:00:37.6]} 69... Kg6 {[%clk 0:00:28.8]} 70. Rg8+ {[%clk 0:00:38.9]}
70... Kf6 {[%clk 0:00:29.4]} 71. Rf8+ {[%clk 0:00:40.2]} 71... Kg7 {[%clk
0:00:30.8]} 72. Ra8 {[%clk 0:00:40.9]} 72... Kf7 {[%clk 0:00:29.7]} 73. Ra6
{[%clk 0:00:41.2]} 73... Rf4 {[%clk 0:00:28.5]} 74. Rb6 {[%clk 0:00:41.1]} 74...
Rf6 {[%clk 0:00:29.4]} 75. Rxf6+ {[%clk 0:00:36.9]} 75... Kxf6 {[%clk 0:00:31]}
76. Kg4 {[%clk 0:00:38.2]} 76... Kg6 {[%clk 0:00:32.5]} 77. Kg3 {[%clk
0:00:39.3]} 77... Kf5 {[%clk 0:00:34.1]} 78. Kf3 {[%clk 0:00:40.5]} 78... g4+
{[%clk 0:00:35.6]} 79. Kg3 {[%clk 0:00:41.8]} 79... Kg5 {[%clk 0:00:37.3]} 80.
Kg2 {[%clk 0:00:43]} 80... Kh4 {[%clk 0:00:38.2]} 81. Kh2 {[%clk 0:00:44.2]}
81... g3+ {[%clk 0:00:39.8]} 82. Kg2 {[%clk 0:00:45.5]} 82... Kg4 {[%clk
0:00:41.3]} 83. Kg1 {[%clk 0:00:46.7]} 83... Kf5 {[%clk 0:00:42.7]} 84. Kg2
{[%clk 0:00:46.5]} 84... Kf4 {[%clk 0:00:44.3]} 85. Kg1 {[%clk 0:00:47.1]} 85...
Kg5 {[%clk 0:00:45.3]} 86. Kg2 {[%clk 0:00:48]} 86... Kh4 {[%clk 0:00:46.7]} 87.
Kg1 {[%clk 0:00:48.9]} 87... Kg4 {[%clk 0:00:47.1]} 88. Kg2 {[%clk 0:00:49.6]}
88... Kf4 {[%clk 0:00:48.8]} 89. Kg1 {[%clk 0:00:50.6]} 89... Kf3 {[%clk
0:00:50.4]} 90. Kf1 {[%clk 0:00:51.6]} 90... g2+ {[%clk 0:00:52]} 91. Kg1 {[%clk
0:00:52.9]} 91... Kg3 {[%clk 0:00:53.7]} 1/2-1/2